bitfinex/quotes_BTCUSD_20250226
["timestamp","ask_amount","ask_price","bid_price","bid_amount"]
[1740554496127,0.19718525,89235.0,89234.0,0.1134811]
[1740554496538,0.49718525,89235.0,89234.0,0.1144811]
[1740554496788,0.49718525,89235.0,89234.0,0.10172768]
[1740554497005,0.49718525,89235.0,89234.0,0.10272768]
[1740554498381,0.49718525,89235.0,89234.0,0.10172768]
[1740554499053,0.49718525,89235.0,89234.0,0.10272768]
[1740554499289,0.49718525,89235.0,89234.0,0.10172768]
[1740554499458,0.49718525,89235.0,89234.0,0.10072768]
[1740554499658,0.49718525,89235.0,89234.0,0.10272768]
[1740554500067,0.49718525,89235.0,89234.0,0.10172768]
[1740554500268,0.49718525,89235.0,89234.0,0.10272768]
[1740554500471,0.49718525,89235.0,89234.0,0.10372768]
[1740554501527,0.49718525,89235.0,89234.0,0.10172768]
[1740554501870,0.49718525,89235.0,89234.0,0.10272768]
[1740554502091,0.49718525,89235.0,89234.0,0.10172768]
[1740554502491,0.49718525,89235.0,89234.0,0.10272768]
[1740554502694,0.49718525,89235.0,89234.0,0.10072768]
[1740554503074,0.49718525,89235.0,89234.0,0.10272768]
[1740554503766,0.49718525,89235.0,89234.0,0.10172768]
[1740554505460,0.49718525,89235.0,89234.0,0.10272768]
[1740554505594,0.49718525,89235.0,89234.0,0.10172768]
[1740554505793,0.49718525,89235.0,89234.0,0.10072768]
[1740554505995,0.49718525,89235.0,89234.0,0.10272768]
[1740554506534,0.49718525,89235.0,89234.0,0.10172768]
[1740554506680,0.49718525,89235.0,89234.0,0.10272768]
[1740554507575,0.49718525,89235.0,89234.0,0.00288993]
[1740554507576,0.59172808,89235.0,89234.0,0.00288993]
[1740554507780,0.168127,89218.0,89217.0,0.18243775]
[1740554507979,0.468136,89213.0,89212.0,0.0800004]
[1740554508185,0.468136,89213.0,89212.0,0.18025634]
[1740554508453,0.468136,89213.0,89212.0,0.00041859]
[1740554509226,0.58199296,89213.0,89212.0,0.00441859]
[1740554509423,0.468136,89213.0,89212.0,0.00641859]
[1740554509822,0.468136,89213.0,89212.0,0.00241859]
[1740554510265,0.469136,89213.0,89212.0,0.00241859]
[1740554510763,0.469136,89213.0,89212.0,0.00041859]
[1740554511308,0.470136,89213.0,89212.0,0.00041859]
[1740554511481,0.469136,89213.0,89212.0,0.00041859]
[1740554511696,0.470136,89213.0,89212.0,0.00041859]
[1740554512761,0.58399296,89213.0,89212.0,0.00041859]
[1740554513999,0.002,89213.0,89212.0,0.00041859]
[1740554514929,0.170136,89213.0,89212.0,0.00041859]
[1740554519458,0.470136,89213.0,89212.0,0.00041859]
[1740554519678,0.470136,89213.0,89212.0,0.10025634]
[1740554523200,0.002,89213.0,89212.0,0.10025634]
[1740554523522,0.170136,89213.0,89212.0,0.10025634]
[1740554524091,0.002,89213.0,89212.0,0.10025634]
[1740554524297,0.001,89213.0,89212.0,0.10182543]
[1740554524503,0.168136,89213.0,89212.0,0.10025634]
[1740554524726,0.169136,89213.0,89212.0,0.10025634]
[1740554525106,0.168136,89213.0,89212.0,0.10025634]
[1740554525427,0.168136,89213.0,89212.0,0.10125634]
[1740554526756,0.168135,89214.0,89212.0,0.10125634]
[1740554526952,0.224151,89226.0,89212.0,0.10125634]
[1740554527293,0.392262,89226.0,89225.0,0.17483775]
[1740554527500,0.468112,89226.0,89225.0,0.17483775]
[1740554528046,0.168112,89226.0,89225.0,0.17483775]
[1740554528252,0.171112,89226.0,89225.0,0.17483775]
[1740554528470,0.173112,89226.0,89225.0,0.17483775]
[1740554528811,0.002,89226.0,89225.0,0.17483775]
[1740554529111,0.170112,89226.0,89225.0,0.17483775]
[1740554529339,0.224146,89228.0,89227.0,0.09983775]
[1740554529340,0.46811,89228.0,89227.0,0.09983775]
[1740554529519,0.46811,89228.0,89227.0,0.09783775]
[1740554530271,0.0167031,89270.0,89234.0,0.09783775]
[1740554530272,0.19761145,89235.0,89234.0,0.09783775]
[1740554530420,0.49761145,89235.0,89234.0,0.09783775]
[1740554530622,0.49761145,89235.0,89234.0,0.09683775]
[1740554531374,0.49761145,89235.0,89234.0,0.09283775]
[1740554531818,0.03051445,89235.0,89234.0,0.17433775]
[1740554532224,0.03151445,89235.0,89234.0,0.17433775]
[1740554532625,0.19960945,89235.0,89234.0,0.17433775]
[1740554533514,0.19860945,89235.0,89234.0,0.17433775]
[1740554534085,0.19760945,89235.0,89234.0,0.17433775]
[1740554534274,0.02951445,89235.0,89234.0,0.17433775]
[1740554534506,0.0004242,89235.0,89234.0,0.34543475]
[1740554534795,0.0004242,89235.0,89234.0,0.17733775]
[1740554534985,0.0004242,89235.0,89234.0,0.18033775]
[1740554535338,0.1685192,89235.0,89234.0,0.18033775]
[1740554535566,0.0004242,89235.0,89234.0,0.18033775]
[1740554536354,0.1685192,89235.0,89234.0,0.18033775]
[1740554536775,0.0004242,89235.0,89234.0,0.18033775]
[1740554537753,0.0004242,89235.0,89234.0,0.39603475]
[1740554538383,0.0004242,89235.0,89234.0,0.22793775]
[1740554538786,0.4685192,89235.0,89234.0,0.22793775]
[1740554539523,0.3004242,89235.0,89234.0,0.22793775]
[1740554540110,0.3004242,89235.0,89234.0,0.39603475]
[1740554540674,0.3004242,89235.0,89234.0,0.22793775]
[1740554540879,0.4685192,89235.0,89234.0,0.22793775]
[1740554541411,0.4685192,89235.0,89234.0,0.22878575]
[1740554542821,0.168095,89235.0,89234.0,0.135948]
[1740554543026,0.168095,89235.0,89234.0,0.006848]
[1740554543231,0.168095,89235.0,89234.0,0.09968575]
[1740554544109,0.168095,89235.0,89234.0,0.09668575]
[1740554544312,0.168095,89235.0,89234.0,0.09568575]
[1740554544519,0.168095,89235.0,89234.0,0.09668575]
[1740554544920,0.168095,89235.0,89234.0,0.09468575]
[1740554545120,0.168095,89235.0,89234.0,0.09568575]
[1740554546312,0.168095,89235.0,89234.0,0.09468575]
[1740554546549,0.168095,89235.0,89234.0,0.09368575]
[1740554546760,0.168095,89235.0,89234.0,0.09468575]
[1740554547971,0.168095,89235.0,89234.0,0.09568575]
[1740554548783,0.168095,89235.0,89234.0,0.09468575]
[1740554549379,0.168095,89235.0,89234.0,0.09368575]
[1740554549769,0.168095,89235.0,89234.0,0.09468575]
[1740554550415,0.168095,89235.0,89234.0,0.09568575]
[1740554550612,0.168095,89235.0,89234.0,0.09468575]
[1740554550820,0.168095,89235.0,89234.0,0.09368575]
[1740554551050,0.168095,89235.0,89234.0,0.09568575]
[1740554551409,0.168095,89235.0,89234.0,0.09368575]
[1740554551815,0.168095,89235.0,89234.0,0.09468575]
[1740554552755,0.168095,89235.0,89234.0,0.09568575]
[1740554553173,0.168095,89235.0,89234.0,0.09468575]
[1740554553554,0.168519,89235.0,89234.0,0.09568575]
[1740554554163,0.168519,89235.0,89234.0,0.09468575]
[1740554554341,0.168519,89235.0,89234.0,0.09568575]
[1740554554973,0.168519,89235.0,89234.0,0.09468575]
[1740554555149,0.16191739,89235.0,89234.0,0.09468575]
[1740554555680,0.16191739,89235.0,89234.0,0.09368575]
[1740554555996,0.16191739,89235.0,89234.0,0.09568575]
[1740554556295,0.16191739,89235.0,89234.0,0.09368575]
[1740554556436,0.16191739,89235.0,89234.0,0.09568575]
[1740554556645,0.16191739,89235.0,89234.0,0.09768575]
[1740554557120,0.16191739,89235.0,89234.0,0.09568575]
[1740554557263,0.16191739,89235.0,89234.0,0.09468575]
[1740554557810,0.16191739,89235.0,89234.0,0.09568575]
[1740554560976,0.000424,89235.0,89234.0,0.09568575]
[1740554561285,0.168519,89235.0,89234.0,0.17558575]
[1740554562049,0.168519,89235.0,89234.0,0.17458575]
[1740554562255,0.168095,89235.0,89234.0,0.17458575]
[1740554562412,0.168095,89235.0,89234.0,0.17658575]
[1740554562612,0.168095,89235.0,89234.0,0.17458575]
[1740554563012,0.168095,89235.0,89234.0,0.17658575]
[1740554563298,0.168095,89235.0,89234.0,0.17358575]
[1740554563481,0.168095,89235.0,89234.0,0.09568575]
[1740554563658,0.168095,89235.0,89234.0,0.09768575]
[1740554563870,0.168095,89235.0,89234.0,0.09568575]
[1740554564067,0.168095,89235.0,89234.0,0.09368575]
[1740554564262,0.168095,89235.0,89234.0,0.09468575]
[1740554564468,0.16788105,89235.0,89234.0,0.09468575]
[1740554565220,0.16830505,89235.0,89234.0,0.09568575]
[1740554565461,0.16830505,89235.0,89234.0,0.09468575]
[1740554565667,0.000424,89235.0,89234.0,0.17158575]
[1740554565842,0.000424,89235.0,89234.0,0.22098575]
[1740554566059,0.000424,89235.0,89234.0,0.38908275]
[1740554566283,0.000424,89235.0,89234.0,0.22098575]
[1740554566486,0.000424,89235.0,89234.0,0.21798575]
[1740554566702,0.000424,89235.0,89234.0,0.38808275]
[1740554566872,0.000424,89235.0,89234.0,0.39008275]
[1740554567180,0.000424,89235.0,89234.0,0.38808275]
[1740554567375,0.000424,89235.0,89234.0,0.22198575]
[1740554568059,0.000424,89235.0,89234.0,0.39014134]
[1740554568421,0.000424,89235.0,89234.0,0.23379776]
[1740554569692,0.000424,89235.0,89234.0,0.40189476]
[1740554569896,0.000424,89235.0,89234.0,0.23379776]
[1740554570313,0.168519,89235.0,89234.0,0.23379776]
[1740554570559,0.168519,89235.0,89234.0,0.23179776]
[1740554570936,0.168519,89235.0,89234.0,0.23479776]
[1740554571482,0.168519,89235.0,89234.0,0.23179776]
[1740554571939,0.168519,89235.0,89234.0,0.22979776]
[1740554572134,0.168519,89235.0,89234.0,0.23279776]
[1740554572336,0.168519,89235.0,89234.0,0.22979776]
[1740554572543,0.168519,89235.0,89234.0,0.23179776]
[1740554572747,0.168519,89235.0,89234.0,0.23379776]
[1740554573059,0.168519,89235.0,89234.0,0.23179776]
[1740554573497,0.168519,89235.0,89234.0,0.23379776]
[1740554573691,0.168519,89235.0,89234.0,0.22979776]
[1740554573893,0.000424,89235.0,89234.0,0.22979776]
[1740554574150,0.000424,89235.0,89234.0,0.23179776]
[1740554574637,0.000424,89235.0,89234.0,0.22979776]
[1740554575145,0.000424,89235.0,89234.0,0.23179776]
[1740554575343,0.000424,89235.0,89234.0,0.22979776]
[1740554575746,0.169519,89235.0,89234.0,0.23479776]
[1740554575957,0.169519,89235.0,89234.0,0.23779776]
[1740554576156,0.001424,89235.0,89234.0,0.23779776]
[1740554576355,0.001424,89235.0,89234.0,0.23479776]
[1740554576781,0.002424,89235.0,89234.0,0.24079776]
[1740554576981,0.170519,89235.0,89234.0,0.24079776]
[1740554577283,0.002424,89235.0,89234.0,0.24079776]
[1740554580062,0.170519,89235.0,89234.0,0.24079776]
[1740554581000,0.002424,89235.0,89234.0,0.24079776]
[1740554584534,0.00581141,89237.0,89234.0,0.24079776]
[1740554584713,0.4684981,89246.0,89245.0,0.09283775]
[1740554585161,0.3004241,89246.0,89245.0,0.17573775]
[1740554585443,0.0004241,89246.0,89245.0,0.22173775]
[1740554585683,0.00036551,89246.0,89245.0,0.24311553]
[1740554585957,0.00036551,89246.0,89245.0,0.25769832]
[1740554586368,0.00036551,89246.0,89245.0,0.25969832]
[1740554586971,0.00036551,89246.0,89245.0,0.26169832]
[1740554587184,0.00036551,89246.0,89245.0,0.42977432]
[1740554587323,0.00036551,89246.0,89245.0,0.42777432]
[1740554587520,0.00036551,89246.0,89245.0,0.43277432]
[1740554587965,0.00036551,89246.0,89245.0,0.43077432]
[1740554588323,0.00036551,89246.0,89245.0,0.43477432]
[1740554589553,0.00036551,89246.0,89245.0,0.26669832]
[1740554589962,0.00036551,89246.0,89245.0,0.43477432]
[1740554590683,0.46843951,89246.0,89245.0,0.11361747]
[1740554590903,0.46843951,89246.0,89245.0,0.10187969]
[1740554591626,0.46843951,89246.0,89245.0,0.09787969]
[1740554591990,0.46843951,89246.0,89245.0,0.09387969]
[1740554592163,0.46843951,89246.0,89245.0,0.09487969]
[1740554592807,0.46843951,89246.0,89245.0,0.09287969]
[1740554598439,0.224096,89248.0,89245.0,0.09287969]
[1740554598835,0.168074,89246.0,89245.0,0.09287969]
[1740554600765,0.168074,89246.0,89245.0,0.09372749]
[1740554600968,0.1684979,89246.0,89245.0,0.09372749]
[1740554605523,0.1684979,89246.0,89245.0,0.09472749]
[1740554605908,0.1684979,89246.0,89245.0,0.09572749]
[1740554607367,0.1684979,89246.0,89245.0,0.09472749]
[1740554607572,0.5551173,89246.0,89245.0,0.00288974]
[1740554607775,0.5551173,89246.0,89245.0,7.4e-07]
[1740554608387,0.468082,89242.0,89241.0,0.09283775]
[1740554608597,0.468082,89242.0,89241.0,0.09289441]
[1740554613086,0.468082,89242.0,89241.0,4.6e-07]
[1740554615122,0.544282,89242.0,89241.0,4.6e-07]
[1740554616367,0.589682,89242.0,89241.0,4.6e-07]
[1740554616629,0.70353896,89242.0,89241.0,4.6e-07]
[1740554617657,0.70753896,89242.0,89241.0,4.6e-07]
[1740554617885,0.593682,89242.0,89241.0,4.6e-07]
[1740554618458,0.589682,89242.0,89241.0,4.6e-07]
[1740554618681,0.594682,89242.0,89241.0,4.6e-07]
[1740554619502,0.598682,89242.0,89241.0,4.6e-07]
[1740554622505,0.477082,89242.0,89241.0,4.6e-07]
[1740554622672,0.477082,89242.0,89241.0,0.09283821]
[1740554623055,0.477082,89242.0,89241.0,0.17243821]
[1740554623469,0.477082,89242.0,89241.0,0.18418167]
[1740554624398,0.477082,89242.0,89241.0,0.17243821]
[1740554624574,0.468082,89242.0,89241.0,0.17243821]
[1740554624953,0.003,89242.0,89241.0,0.17243821]
[1740554625143,0.003,89242.0,89241.0,0.18418167]
[1740554626373,0.0004239,89245.0,89241.0,0.18418167]
[1740554626825,0.0004239,89245.0,89241.0,0.18618167]
[1740554627191,0.0004239,89245.0,89244.0,0.09283775]
[1740554627641,0.0004239,89245.0,89244.0,0.10457695]
[1740554628292,0.1684999,89245.0,89244.0,0.10757695]
[1740554629241,0.0004239,89245.0,89244.0,0.10757695]
[1740554629404,0.0004239,89245.0,89244.0,0.11157695]
[1740554631397,0.0004239,89245.0,89244.0,0.19074557]
[1740554631606,0.0004239,89245.0,89244.0,0.42316442]
[1740554631840,0.0004239,89245.0,89244.0,0.4215958]
[1740554632255,0.3,89262.0,89245.0,0.09074085]
[1740554632256,0.224061,89262.0,89245.0,0.09074085]
[1740554632444,0.224061,89262.0,89246.0,0.0777684]
[1740554632648,0.224061,89262.0,89246.0,0.08950476]
[1740554632846,0.16805,89259.0,89246.0,0.08950476]
[1740554633020,0.16805,89259.0,89247.0,0.0823]
[1740554633224,0.4483319,89304.0,89248.0,0.08386843]
[1740554633555,0.168053,89258.0,89248.0,0.09560194]
[1740554634073,0.168052,89259.0,89248.0,0.09560194]
[1740554634432,0.19999802,89259.0,89248.0,0.09560194]
[1740554635050,0.03194602,89259.0,89248.0,0.09403351]
[1740554635227,0.168067,89250.0,89248.0,0.09403351]
[1740554635641,0.168065,89251.0,89248.0,0.09403351]
[1740554635794,0.224069,89258.0,89248.0,0.09403351]
[1740554636135,0.168067,89250.0,89248.0,0.09403351]
[1740554636336,0.168069,89249.0,89248.0,0.09403351]
[1740554636539,0.001,89259.0,89248.0,0.09403351]
[1740554636701,0.168068,89250.0,89248.0,0.09403351]
[1740554637270,0.000424,89250.0,89248.0,0.09403351]
[1740554638199,0.168491,89250.0,89248.0,0.09403351]
[1740554638428,0.168491,89250.0,89248.0,0.09603351]
[1740554638643,0.168069,89249.0,89248.0,0.09603351]
[1740554639623,0.168069,89249.0,89248.0,0.09803351]
[1740554640072,0.168069,89249.0,89248.0,0.09603351]
[1740554640279,0.168069,89249.0,89248.0,0.09903351]
[1740554640643,0.168069,89249.0,89248.0,0.09703351]
[1740554640844,0.168069,89249.0,89248.0,0.18987126]
[1740554641043,0.168069,89249.0,89248.0,0.19287126]
[1740554643509,0.3,89258.0,89252.0,0.09283775]
[1740554643701,0.168061,89253.0,89252.0,0.09283775]
[1740554644109,0.468069,89249.0,89248.0,0.006]
[1740554644267,0.468069,89249.0,89248.0,0.09883775]
[1740554644660,0.468069,89249.0,89248.0,0.09583775]
[1740554644910,0.468069,89249.0,89248.0,0.09283775]
[1740554645658,0.468069,89249.0,89248.0,0.09483775]
[1740554645976,0.468069,89249.0,89248.0,0.09683775]
[1740554647755,0.3,89249.0,89248.0,0.09683775]
[1740554648111,0.3,89249.0,89248.0,0.10857126]
[1740554648529,0.3,89249.0,89248.0,0.09683775]
[1740554648744,0.468069,89249.0,89248.0,0.09683775]
[1740554650437,0.468069,89249.0,89248.0,0.09768555]
[1740554660438,0.3,89249.0,89248.0,0.09768555]
[1740554660826,0.468069,89249.0,89248.0,0.09768555]
[1740554684674,0.468069,89249.0,89248.0,0.09568555]
[1740554684876,0.468069,89249.0,89248.0,0.09368555]
[1740554685077,0.468069,89249.0,89248.0,0.09568555]
[1740554685276,0.468069,89249.0,89248.0,0.09668555]
[1740554685541,0.468069,89249.0,89248.0,0.09468555]
[1740554685763,0.468069,89249.0,89248.0,0.09668555]
[1740554687551,0.468069,89249.0,89248.0,0.0038478]
[1740554688252,0.468069,89249.0,89248.0,0.0018478]
[1740554688684,0.468069,89249.0,89248.0,0.0038478]
[1740554688906,0.45163641,89249.0,89248.0,0.0038478]
[1740554689679,0.45163641,89249.0,89248.0,0.0028478]
[1740554689880,0.45163641,89249.0,89248.0,0.0038478]
[1740554690279,0.45163641,89249.0,89248.0,0.0028478]
[1740554690683,0.45163641,89249.0,89248.0,0.0038478]
[1740554691503,0.45163641,89249.0,89248.0,0.0018478]
[1740554691711,0.45163641,89249.0,89248.0,0.0038478]
[1740554692136,0.45163641,89249.0,89248.0,0.0018478]
[1740554692509,0.45163641,89249.0,89248.0,0.0038478]
[1740554693128,0.45163641,89249.0,89248.0,0.0018478]
[1740554693330,0.45163641,89249.0,89248.0,0.0028478]
[1740554693877,0.45363641,89249.0,89248.0,0.0028478]
[1740554694082,0.45163641,89249.0,89248.0,0.0028478]
[1740554694250,0.45263641,89249.0,89248.0,0.0028478]
[1740554694638,0.45263641,89249.0,89248.0,0.0008478]
[1740554695873,0.45163641,89249.0,89248.0,0.0008478]
[1740554696261,0.45263641,89249.0,89248.0,0.0008478]
[1740554696794,0.45363641,89249.0,89248.0,0.0008478]
[1740554696997,0.45163641,89249.0,89248.0,0.0008478]
[1740554697356,0.45263641,89249.0,89248.0,0.0008478]
[1740554699676,0.28356741,89249.0,89241.0,4.6e-07]
[1740554699996,0.468082,89242.0,89241.0,4.6e-07]
[1740554700957,0.468095,89235.0,89234.0,4.6e-07]
[1740554701130,0.468095,89235.0,89234.0,6.633e-05]
[1740554701667,0.22272803,89235.0,89234.0,6.633e-05]
[1740554701883,0.39082303,89235.0,89234.0,6.633e-05]
[1740554702849,0.39944244,89235.0,89234.0,6.633e-05]
[1740554703043,0.5132994,89235.0,89234.0,1e-08]
[1740554703771,0.5142994,89235.0,89234.0,1e-08]
[1740554704558,0.5152994,89235.0,89234.0,1e-08]
[1740554704746,0.5132994,89235.0,89234.0,1e-08]
[1740554706527,0.5142994,89235.0,89234.0,1e-08]
[1740554706751,0.40044244,89235.0,89234.0,1e-08]
[1740554707080,0.39944244,89235.0,89234.0,1e-08]
[1740554707480,0.40244244,89235.0,89234.0,1e-08]
[1740554707882,0.40544244,89235.0,89234.0,1e-08]
[1740554708084,0.175095,89235.0,89234.0,0.09283776]
[1740554708307,0.168095,89235.0,89234.0,0.09283776]
[1740554708483,0.3,89238.0,89234.0,0.09283776]
[1740554708684,0.3,89238.0,89234.0,0.10459118]
[1740554708685,0.170095,89235.0,89234.0,0.10459118]
[1740554708886,0.170095,89235.0,89234.0,0.09283776]
[1740554710365,0.168095,89235.0,89234.0,0.09283776]
[1740554710608,0.170095,89235.0,89234.0,0.09283776]
[1740554710812,0.169095,89235.0,89234.0,0.09368616]
[1740554710965,0.4695192,89235.0,89234.0,0.09368616]
[1740554711169,0.4705192,89235.0,89234.0,0.09368616]
[1740554711366,0.4695192,89235.0,89234.0,0.09368616]
[1740554712332,0.4705192,89235.0,89234.0,0.09368616]
[1740554718386,0.4705192,89235.0,89234.0,0.00084841]
[1740554718589,0.4705192,89235.0,89234.0,0.09368616]
[1740554719684,0.4695192,89235.0,89234.0,0.09368616]
[1740554719885,0.4705192,89235.0,89234.0,0.09368616]
[1740554720479,0.4695192,89235.0,89234.0,0.09368616]
[1740554720899,0.4705192,89235.0,89234.0,0.09368616]
[1740554721928,0.44760037,89235.0,89234.0,0.09368616]
[1740554723851,0.44760037,89235.0,89234.0,0.00084841]
[1740554725063,0.44760037,89235.0,89234.0,4.1e-07]
[1740554726487,0.51995242,89235.0,89234.0,4.1e-07]
[1740554726688,0.44760037,89235.0,89234.0,4.1e-07]
[1740554731095,0.468121,89221.0,89220.0,0.07678042]
[1740554731227,0.46816786,89221.0,89220.0,0.08979816]
[1740554731860,0.30004686,89221.0,89219.0,0.08979816]
[1740554732061,0.468125,89219.0,89218.0,0.08979816]
[1740554732624,0.468133,89215.0,89214.0,0.0784]
[1740554732829,0.468133,89215.0,89194.0,0.0895646]
[1740554732830,0.11385696,89215.0,89203.0,0.08979816]
[1740554733027,0.468168,89196.0,89195.0,0.09064616]
[1740554733229,0.468168,89196.0,89195.0,0.000848]
[1740554733439,0.468168,89196.0,89195.0,0.09064616]
[1740554734864,0.468168,89196.0,89195.0,0.09464616]
[1740554735956,0.50187612,89196.0,89195.0,0.09464616]
[1740554736470,0.50187612,89196.0,89195.0,0.09864616]
[1740554736705,0.50187612,89196.0,89195.0,0.09464616]
[1740554737138,0.03370812,89196.0,89195.0,0.18054616]
[1740554737270,0.03370812,89196.0,89195.0,0.17254616]
[1740554737467,0.168168,89196.0,89195.0,0.17454616]
[1740554738112,0.168168,89196.0,89195.0,0.17254616]
[1740554738419,0.20197028,89196.0,89195.0,0.17554616]
[1740554739504,0.20197028,89196.0,89195.0,0.17654616]
[1740554739706,0.03380228,89196.0,89195.0,0.17954616]
[1740554739906,0.168157,89202.0,89195.0,0.39701616]
[1740554740084,0.0458,89236.0,89220.0,0.08979816]
[1740554740269,0.39232986,89221.0,89220.0,0.08979816]
[1740554740850,0.69232986,89221.0,89220.0,0.08979816]
[1740554741053,0.14926418,89221.0,89220.0,0.08979816]
[1740554741413,0.71357822,89221.0,89220.0,0.09079816]
[1740554742976,0.71657822,89221.0,89220.0,0.09179816]
[1740554752286,0.04315204,89221.0,89220.0,0.09179816]
[1740554753073,0.04015204,89221.0,89220.0,0.09079816]
[1740554753261,0.03415204,89221.0,89220.0,0.08979816]
[1740554753470,0.169121,89221.0,89220.0,0.08979816]
[1740554753870,0.001,89221.0,89220.0,0.08979816]
[1740554754081,0.002,89221.0,89220.0,0.08979816]
[1740554754281,0.170121,89221.0,89220.0,0.08979816]
[1740554754489,0.03511739,89221.0,89220.0,0.08979816]
[1740554755168,0.03411739,89221.0,89220.0,0.08979816]
[1740554755383,0.03311739,89221.0,89220.0,0.08979816]
[1740554755590,0.002,89221.0,89220.0,0.08979816]
[1740554755786,0.170121,89221.0,89220.0,0.08979816]
[1740554756013,0.20319804,89221.0,89220.0,0.08979816]
[1740554759443,0.20319804,89221.0,89220.0,0.09064656]
[1740554761331,0.50319804,89221.0,89220.0,0.09064656]
[1740554762450,0.50319804,89221.0,89220.0,0.16634656]
[1740554762451,0.03507704,89221.0,89220.0,0.16634656]
[1740554762874,0.03507704,89221.0,89220.0,0.33446956]
[1740554763236,0.03507704,89221.0,89220.0,0.16634656]
[1740554763445,0.20319804,89221.0,89220.0,0.16634656]
[1740554763702,0.03507704,89221.0,89220.0,0.16634656]
[1740554763876,0.0004243,89235.0,89233.0,0.08979816]
[1740554764076,0.224129,89234.0,89233.0,0.08979816]
[1740554764491,0.25770188,89234.0,89233.0,0.08979816]
[1740554765085,0.25770188,89234.0,89233.0,0.09079816]
[1740554765330,0.25770188,89234.0,89233.0,0.09179816]
[1740554765502,0.25770188,89234.0,89233.0,0.09079816]
[1740554765705,0.26370188,89234.0,89233.0,0.09079816]
[1740554766027,0.57522098,89234.0,89233.0,0.002]
[1740554772273,0.57522098,89234.0,89233.0,0.09179816]
[1740554772465,0.57564518,89234.0,89233.0,0.09179816]
[1740554773235,0.03567107,89234.0,89233.0,0.09179816]
[1740554773535,0.25980007,89234.0,89233.0,0.09179816]
[1740554775930,0.55980007,89234.0,89233.0,0.09179816]
[1740554776492,0.55128097,89234.0,89233.0,0.09179816]
[1740554777040,0.54828097,89234.0,89233.0,0.09079816]
[1740554777264,0.32415197,89234.0,89233.0,0.09079816]
[1740554777541,0.49424897,89234.0,89233.0,0.09079816]
[1740554777738,0.49424897,89234.0,89233.0,0.17339816]
[1740554778105,0.48824897,89234.0,89233.0,0.17239816]
[1740554778511,0.49224897,89234.0,89233.0,0.17239816]
[1740554778908,0.49024897,89234.0,89233.0,0.17239816]
[1740554779115,0.49424897,89234.0,89233.0,0.17239816]
[1740554779320,0.49024897,89234.0,89233.0,0.17239816]
[1740554779880,0.49224897,89234.0,89233.0,0.17239816]
[1740554780240,0.49424897,89234.0,89233.0,0.17239816]
[1740554780690,0.49224897,89234.0,89233.0,0.17239816]
[1740554780983,0.49424897,89234.0,89233.0,0.17239816]
[1740554781633,0.49424897,89234.0,89233.0,0.08979816]
[1740554784530,0.49424897,89234.0,89223.0,0.00964]
[1740554784531,0.3,89233.0,89222.0,0.0763]
[1740554784734,0.468121,89221.0,89220.0,0.09064656]
[1740554786332,0.468121,89221.0,89220.0,0.09364656]
[1740554787856,0.468121,89221.0,89220.0,0.09664656]
[1740554792032,0.19700879,89221.0,89220.0,0.09664656]
[1740554792279,0.168121,89221.0,89220.0,0.09664656]
[1740554792566,0.002,89233.0,89232.0,0.08979816]
[1740554792774,0.170099,89233.0,89232.0,0.08979816]
[1740554793163,0.170099,89233.0,89232.0,0.10155442]
[1740554793504,0.168099,89233.0,89232.0,0.10155442]
[1740554793904,0.172099,89233.0,89232.0,0.10155442]
[1740554794104,0.304,89233.0,89232.0,0.10155442]
[1740554794368,0.472099,89233.0,89232.0,0.10155442]
[1740554794986,0.472099,89233.0,89232.0,0.08979816]
[1740554795194,0.470099,89233.0,89232.0,0.08979816]
[1740554795404,0.468099,89233.0,89232.0,0.08979816]
[1740554795571,0.470099,89233.0,89232.0,0.08979816]
[1740554797021,0.302,89233.0,89232.0,0.08979816]
[1740554797333,0.302,89233.0,89232.0,0.10155442]
[1740554797944,0.3024242,89233.0,89232.0,0.10155442]
[1740554798122,0.4705232,89233.0,89232.0,0.10155442]
[1740554798748,0.4705232,89233.0,89232.0,0.08979816]
[1740554798943,0.3024242,89233.0,89232.0,0.08979816]
[1740554799331,0.3024242,89233.0,89232.0,0.10155442]
[1740554800083,0.30215343,89233.0,89232.0,0.10155442]
[1740554800466,0.47025243,89233.0,89232.0,0.10155442]
[1740554800880,0.47025243,89233.0,89232.0,0.08979816]
[1740554802027,0.46997327,89233.0,89232.0,0.08979816]
[1740554804388,0.46997327,89233.0,89232.0,0.10155442]
[1740554804591,0.46997327,89233.0,89232.0,0.08979816]
[1740554805179,0.30187427,89233.0,89232.0,0.08979816]
[1740554805395,0.30187427,89233.0,89232.0,0.10155442]
[1740554806017,0.46997327,89233.0,89232.0,0.10155442]
[1740554806427,0.46997327,89233.0,89232.0,0.08979816]
[1740554810345,0.46997327,89233.0,89232.0,0.09064656]
[1740554814471,0.61000063,89233.0,89232.0,0.0008484]
[1740554814669,0.168103,89231.0,89230.0,0.06238357]
[1740554815827,0.468103,89231.0,89230.0,0.06238357]
[1740554816694,0.3,89230.0,89221.0,0.06238357]
[1740554816895,0.168121,89221.0,89220.0,0.0008484]
[1740554817259,0.16861053,89221.0,89220.0,0.01262172]
[1740554817445,0.16861053,89221.0,89220.0,0.0008484]
[1740554818656,0.172121,89221.0,89220.0,0.0008484]
[1740554819202,0.174121,89221.0,89220.0,0.0008484]
[1740554820308,0.172121,89221.0,89220.0,0.0008484]
[1740554820510,0.173121,89221.0,89220.0,0.0008484]
[1740554825412,0.172507,89221.0,89220.0,0.0008484]
[1740554831391,0.168121,89221.0,89220.0,0.0008484]
[1740554832719,0.168121,89221.0,89220.0,0.0071716]
[1740554832923,0.168121,89221.0,89220.0,0.0008484]
[1740554834467,0.468121,89221.0,89220.0,0.0008484]
[1740554835356,0.46795985,89221.0,89220.0,0.0008484]
[1740554837344,0.3,89212.0,89209.0,0.06238357]
[1740554837623,0.168167,89197.0,89196.0,0.0808]
[1740554837846,0.168167,89197.0,89196.0,0.14318357]
[1740554838593,0.168167,89197.0,89196.0,0.14718357]
[1740554839020,0.168167,89197.0,89196.0,0.08521819]
[1740554839230,0.168167,89197.0,89196.0,0.14760176]
[1740554839702,0.468167,89197.0,89196.0,0.06280176]
[1740554839901,0.468167,89197.0,89196.0,0.06680176]
[1740554841542,0.468167,89197.0,89196.0,0.07080176]
[1740554841761,0.468167,89197.0,89196.0,0.06680176]
[1740554842156,0.468167,89197.0,89196.0,0.00841819]
[1740554842360,0.468167,89197.0,89196.0,0.07080176]
[1740554842588,0.468167,89197.0,89196.0,0.00841819]
[1740554847406,0.468167,89197.0,89196.0,0.00926639]
[1740554849811,0.46866755,89197.0,89196.0,0.00926639]
[1740554852896,0.468167,89197.0,89196.0,0.00926639]
[1740554859062,0.468167,89197.0,89196.0,0.15054996]
[1740554861974,0.468167,89197.0,89196.0,0.16345054]